Cogmind - Beta 12 --- EXPLORER MODE // 2023.11.18 @ 12:37:55 Player: wadebtw Result: Destroyed by P-80 Master with Gamma Rifle Performance ------------- Evolutions (8) 4000 Regions Visited (29) 5800 Robots Destroyed (427) 2135 Value Destroyed (22413) 22413 Prototype IDs (39) 780 Alien Tech Used (4) 800 Bonus (14429) 14429 TOTAL SCORE: 50357 Bonus ------- Triggered Max Security 1000 High Alert Combat Kills 5688 Follower Combat Kills 141 Entered Garrisons 1000 Used RIF Installer 2500 Aligned with FarCom 300 Met Zhirov 300 Used Core Reset Matrix 3000 Scanned by Researcher 500 Cogmind --------- Core Integrity 0/1450 Matter 91/300 Energy 85/100 System Corruption 12% Temperature Cool (9) Movement Core (900) Ox17 Location -2/Quarantine Parts ------- > --- POWER (3) -------- (None) > --- PROPULSION (6) --- (None) > --- UTILITY (12) ----- High-capacity Storage Unit > --- WEAPON (3) ------- Fusion Bomb Launcher > --- INVENTORY (20) --- Medium Treads Medium Treads Medium Treads Advanced Heat Sink Advanced Heat Sink Advanced Heat Sink Advanced Weapon Cycler Linear Accelerator Peak State ------------ > --- POWER ------------ Quantum Reactor Quantum Reactor Quantum Reactor > --- PROPULSION ------- Biometal Heavy Treads Biometal Heavy Treads Advanced Heavy Siege Treads > --- UTILITY ---------- Advanced Heat Sink Advanced Heat Sink Advanced Heat Sink High-capacity Storage Unit Experimental Optical Array Advanced Targeting Computer Advanced Weapon Cycler Experimental Power Shielding Hardened Heavy Armor Plating Improved Energy Mantle Improved Corruption Screen > --- WEAPON ----------- Long-range Phase Cannon Enhanced Nova Cannon Linear Accelerator > --- INVENTORY -------- Quantum Reactor Quantum Reactor Medium Treads Medium Treads Armored Medium Treads Advanced Medium Treads Advanced Heat Sink Advanced Heat Sink Advanced Heat Sink Advanced Weapon Cycler Layered Heavy Armor Plating Transdimensional Reconstructor Enhanced Nova Cannon Linear Accelerator Linear Accelerator Fusion Bomb Launcher [Rating: 182] Favorites ----------- Power Quantum Reactor Engine Deuterium Engine Power Core Neutrino Core Reactor Quantum Reactor Propulsion Light Treads Treads Light Treads Leg Aluminum Leg Flight Unit Cesium-ion Thruster Utility Advanced Heat Sink Device Advanced Heat Sink Storage High-capacity Storage Unit Processor Experimental Optical Array Hackware Relay Coupler [Demolisher] Protection Hardened Light Armor Plating Weapon Enhanced Nova Cannon Energy Gun Beam Rifle Energy Cannon Enhanced Nova Cannon Ballistic Gun Assault Rifle Ballistic Cannon Mass Driver Launcher Micro-nuke Launcher Build | -11 -10 -10 -9 -9 -9 -8 -8 -7 -7 -7 -6 -6 -6 -6 -5 -5 -5 -5 -5 -5 -4 -4 -4 -4 -3 -3 -3 -2 -2 ------- Run | Jun Mat Min Mat Min Exi Min Mat Fac Low Low Fac Gar Fac Gar Fac Gar Fac Gar Fac Upp Fac Upp Upp Zhi Pro Res Gar Res Qua Slots Evolved 17 | . 1 . 2 . . . 2 2 . . 2 . . . 2 . . . . . 2 . . . . 2 . 2 . Power 2 | . . . . . . . 1 . . . . . . . . . . . . . . . . . . . . 1 . Propulsion 4 | . . . 1 . . . . 1 . . . . . . 1 . . . . . . . . . . 1 . . . Utility 10 | . 1 . 1 . . . 1 1 . . 2 . . . 1 . . . . . 1 . . . . 1 . 1 . Weapon 1 | . . . . . . . . . . . . . . . . . . . . . 1 . . . . . . . . Parts Attached 297 | 7 4 . 10 1 5 1 16 4 8 1 22 16 33 6 3 47 3 19 8 . 4 4 3 8 13 5 16 13 17 Power 44 | 1 1 . 1 . . . 6 . 3 1 5 4 4 2 . 9 . 1 . . . . 1 . . . 2 1 2 Engine 23 | 1 1 . 1 . . . 6 . 3 1 2 2 3 . . 3 . . . . . . . . . . . . . Core 6 | . . . . . . . . . . . 1 . 1 1 . 3 . . . . . . . . . . . . . Reactor 15 | . . . . . . . . . . . 2 2 . 1 . 3 . 1 . . . . 1 . . . 2 1 2 Propulsion 65 | 2 . . 6 . . . 3 3 . . 3 4 6 2 3 17 1 4 1 . . . 1 . 2 1 4 . 2 Treads 49 | . . . 3 . . . 3 3 . . 3 4 6 2 3 6 1 4 1 . . . 1 . 2 1 4 . 2 Leg 13 | 2 . . . . . . . . . . . . . . . 11 . . . . . . . . . . . . . Wheel . | . . . . . . . . . . . . . . . . . . . . . . . . . . . . . . Hover . | . . . . . . . . . . . . . . . . . . . . . . . . . . . . . . Flight 3 | . . . 3 . . . . . . . . . . . . . . . . . . . . . . . . . . Utility 120 | 2 3 . 3 . 4 1 3 1 3 . 9 5 16 1 . 11 1 11 6 . 2 3 1 7 10 2 2 9 4 Device 64 | . . . 1 . 3 . . 1 2 . 5 1 9 . . 7 . 7 1 . 1 2 1 2 9 1 2 8 1 Storage 14 | 1 2 . 1 . 1 . 2 . 1 . 1 1 1 . . . . 2 . . . . . 1 . . . . . Processor 11 | . 1 . . . . 1 . . . . . 2 1 . . 1 . . . . 1 1 . 1 . . . . 2 Hackware 1 | . . . . . . . . . . . . . 1 . . . . . . . . . . . . . . . . Protection 30 | 1 . . 1 . . . 1 . . . 3 1 4 1 . 3 1 2 5 . . . . 3 1 1 . 1 1 Artifact . | . . . . . . . . . . . . . . . . . . . . . . . . . . . . . . Weapon 68 | 2 . . . 1 1 . 4 . 2 . 5 3 7 1 . 10 1 3 1 . 2 1 . 1 1 2 8 3 9 Energy Gun 3 | 1 . . . 1 . . 1 . . . . . . . . . . . . . . . . . . . . . . Energy Cannon 16 | . . . . . . . . . . . . . . . . 1 . 2 1 . . . . 1 1 1 3 1 5 Ballistic Gun 21 | 1 . . . . 1 . . . 2 . 1 2 6 1 . 7 . . . . . . . . . . . . . Ballistic Cannon 20 | . . . . . . . 3 . . . 4 1 1 . . 2 1 1 . . 1 1 . . . . 2 2 1 Launcher 8 | . . . . . . . . . . . . . . . . . . . . . 1 . . . . 1 3 . 3 Special Weapon . | . . . . . . . . . . . . . . . . . . . . . . . . . . . . . . Impact Weapon . | . . . . . . . . . . . . . . . . . . . . . . . . . . . . . . Slashing Weapon . | . . . . . . . . . . . . . . . . . . . . . . . . . . . . . . Piercing Weapon . | . . . . . . . . . . . . . . . . . . . . . . . . . . . . . . Special Melee Weapon . | . . . . . . . . . . . . . . . . . . . . . . . . . . . . . . Unidentified Prototypes 22 | . . . . . 2 . 2 . . . 2 . 3 . . 3 . . . . . 1 . 4 . 1 . 1 3 Parts Lost 81 | . . . 1 . . . . . 1 . 2 5 7 1 . 23 . 10 1 . . . 1 . . . 1 1 27 Power 12 | . . . . . . . . . . . . 1 1 . . 4 . 1 . . . . . . . . . . 5 Propulsion 18 | . . . . . . . . . . . 1 2 2 . . 9 . . . . . . . . . . . . 4 Utility 37 | . . . 1 . . . . . . . 1 2 2 . . 8 . 8 1 . . . . . . . 1 1 12 Weapon 14 | . . . . . . . . . 1 . . . 2 1 . 2 . 1 . . . . 1 . . . . . 6 Highest Loss Streak 24 | . . . 1 . . . . . 1 . 1 2 3 1 . 15 . 4 1 . . . 1 . . . 1 1 24 To Critical Strikes 3 | . . . . . . . . . . . . . 1 . . 1 . . . . . . . . . . . . 1 Average Slot Usage (%) 91 | . 98 100 91 100 99 100 99 99 97 93 94 98 97 92 87 84 88 83 86 83 85 84 81 84 85 86 83 82 73 Engine 5 | . 12 12 10 10 10 10 15 14 12 8 5 1 6 3 . 2 . . . . . . . . . . . . . Reactor 5 | . . . . . . . . . . . 5 5 5 2 5 3 11 10 11 11 10 10 9 10 10 9 8 12 10 Treads 19 | . . . 17 30 30 30 24 27 28 28 24 24 23 17 21 14 16 16 15 16 15 15 14 15 15 18 15 12 12 Leg 1 | . 25 25 1 . . . . . . . . . . . . 3 . . . . . . . . . . . . . Device 15 | . . . 2 10 11 13 8 13 13 14 20 25 18 12 11 12 16 20 20 16 19 14 15 18 20 18 18 21 21 Storage 8 | . 12 12 10 10 10 10 8 7 7 7 10 12 11 12 11 9 5 10 11 11 10 10 10 7 5 4 4 4 4 Processor 12 | . 11 12 10 10 10 16 16 14 14 14 9 5 14 18 16 13 16 11 11 11 10 15 15 15 15 13 13 12 9 Protection 6 | . 12 12 10 10 7 . 7 7 7 7 7 5 3 6 5 7 11 2 5 5 5 5 5 5 5 9 9 6 2 Energy Gun 2 | . 12 12 10 10 10 10 6 7 5 . . . . . . . . . . . . . . . . . . . . Energy Cannon 3 | . . . . . . . . . . . . . . . . . 5 5 10 11 10 6 5 8 10 6 10 10 6 Ballistic Gun 4 | . 12 12 10 10 10 10 2 . 3 14 1 1 8 11 11 8 . . . . . . . . . . . . . Ballistic Cannon 3 | . . . . . . . 7 7 4 . 7 10 3 . . 1 5 4 . . 1 3 5 5 5 4 2 1 3 Naked Turns . | . . . . . . . . . . . . . . . . . . . . . . . . . . . . . . Heaviest Build 177 | 20 22 22 37 38 43 43 49 57 79 78 98 94 84 89 89 120 120 118 130 130 142 141 137 143 143 143 143 177 176 Greatest Support 230 | 20 20 20 60 60 60 60 62 85 85 85 85 96 130 138 182 188 188 187 172 172 172 172 172 172 172 196 230 230 230 Greatest Overweight (x) 23 | 3 1 1 2 . . . . . . . 1 1 1 . . 2 . . . . . . . . . . . . 23 Average Overweight (x) . | 1 . 1 . . . . . . . . . . . . . . . . . . . . . . . . . . . Largest Inventory Capacity 25 | 10 25 10 15 15 15 15 20 15 20 20 20 20 20 20 20 20 20 20 20 20 20 20 20 20 20 20 20 20 20 Average Capacity 18 | 9 10 10 13 15 15 15 15 15 17 20 20 20 20 20 20 20 20 20 20 20 20 20 20 20 20 20 20 20 20 Most Carried 20 | 7 6 6 11 14 15 15 15 15 20 18 20 20 20 20 19 20 15 16 19 18 20 19 20 20 20 20 20 18 18 Average Carried 15 | 3 5 6 9 12 14 13 12 13 15 17 18 19 19 18 16 14 12 11 12 18 16 17 19 19 18 17 18 15 16 Final Capacity 20 | 10 10 10 15 15 15 15 15 15 20 20 20 20 20 20 20 20 20 20 20 20 20 20 20 20 20 20 20 20 20 Final Carried 20 | 4 6 6 11 14 14 13 14 15 17 17 20 20 20 17 19 12 15 9 18 18 18 17 20 20 18 20 19 17 8 Class Distribution -------------------- 58% | Hacker-Mutant 23% | Scavenger-Mutant 6% | Scavenger-Tank 5% | Hacker-Gunner 3% | Scavenger-Skirmisher Dominant Class ---------------- Hacker-Mutant | -10/Materials Hacker-Mutant | -10/Mines Hacker-Mutant | -9/Materials Hacker-Mutant | -9/Mines Hacker-Mutant | -9/Exiles Hacker-Mutant | -8/Mines Hacker-Mutant | -8/Materials Hacker-Mutant | -7/Factory Hacker-Mutant | -7/Lower Caves Scavenger-Mutant | -7/Lower Caves Scavenger-Mutant | -6/Factory Hacker-Mutant | -6/Garrison Hacker-Mutant | -6/Factory Hacker-Mutant | -6/Garrison Scavenger-Mutant | -5/Factory Scavenger-Mutant | -5/Garrison Hacker-Mutant | -5/Factory Hacker-Mutant | -5/Garrison Scavenger-Mutant | -5/Factory Hacker-Mutant | -5/Upper Caves Scavenger-Mutant | -4/Factory Hacker-Mutant | -4/Upper Caves Hacker-Mutant | -4/Upper Caves Hacker-Gunner | -4/Zhirov Hacker-Gunner | -3/Proximity Caves Scavenger-Mutant | -3/Research Scavenger-Skirmisher | -3/Garrison Scavenger-Tank | -2/Research Scavenger-Tank | -2/Quarantine Resources | -11 -10 -10 -9 -9 -9 -8 -8 -7 -7 -7 -6 -6 -6 -6 -5 -5 -5 -5 -5 -5 -4 -4 -4 -4 -3 -3 -3 -2 -2 ----------- Run | Jun Mat Min Mat Min Exi Min Mat Fac Low Low Fac Gar Fac Gar Fac Gar Fac Gar Fac Upp Fac Upp Upp Zhi Pro Res Gar Res Qua Matter Collected 11243 | 195 181 64 217 34 . 66 362 67 201 96 1112 885 1951 489 114 1861 65 686 80 . 30 121 490 10 298 67 539 418 544 Remotely 300 | . . . . . . . . . . . . . 300 . . . . . . . . . . . . . . . . Salvage Created 20195 | . 278 133 547 125 . . 801 41 494 105 1225 680 2192 1017 107 2516 128 919 563 . 66 292 1198 . 986 326 1329 1910 2217 Parts 868 | . 18 6 41 15 . . 55 4 13 4 39 38 86 56 9 108 6 52 30 . 5 3 30 . 33 23 52 84 58 Haulers Intercepted 12 | . 1 . . . . . 3 . . . 2 . 4 . . . . . 1 . . . . . . 1 . . . Recyclers Shooed 14 | . . 1 3 1 . . . . . . . . 9 . . . . . . . . . . . . . . . . Parts Field Recycled . | . . . . . . . . . . . . . . . . . . . . . . . . . . . . . . Retrieved Matter . | . . . . . . . . . . . . . . . . . . . . . . . . . . . . . . Parts Self-Destructed . | . . . . . . . . . . . . . . . . . . . . . . . . . . . . . . Prevented . | . . . . . . . . . . . . . . . . . . . . . . . . . . . . . . Kills | -11 -10 -10 -9 -9 -9 -8 -8 -7 -7 -7 -6 -6 -6 -6 -5 -5 -5 -5 -5 -5 -4 -4 -4 -4 -3 -3 -3 -2 -2 ------- Run | Jun Mat Min Mat Min Exi Min Mat Fac Low Low Fac Gar Fac Gar Fac Gar Fac Gar Fac Upp Fac Upp Upp Zhi Pro Res Gar Res Qua Combat Hostiles Destroyed 388 | . 7 3 11 5 . . 13 1 10 2 22 23 27 19 4 41 4 25 9 . . 4 26 . 16 3 25 35 53 Melee 1 | . . . . . . . . . . . . . . . . . . 1 . . . . . . . . . . . Guns 122 | . 7 3 11 5 . . 4 . 5 2 3 3 19 19 4 37 . . . . . . . . . . . . . Cannons 204 | . . . . . . . 9 1 5 . 19 20 8 . . 4 4 22 9 . . 2 18 . 14 3 14 32 20 AOE 46 | . . . . . . . . . . . . . . . . . . . . . . 1 6 . . . 6 . 33 Classes Destroyed 22 | . 4 2 2 1 . . 2 1 1 . . 1 1 . . 2 . 1 . . . . . . 2 . . . 2 Worker 9 | . . 1 . . . . 1 1 . . 1 . 1 . . . . . 1 . 1 . . . . 2 . . . Builder 4 | . . . . 1 . . . . . . . . . . . . . . . . . . . . . 2 . 1 . Hauler 12 | . 1 . . . . . 3 . . . 2 . 4 . . . . . 1 . . . . . . 1 . . . Recycler 10 | . . . 1 . . . 2 . . . 2 . 4 . . . . . . . . . . . . . . 1 . Mechanic 5 | . . . . . . . . . . . . . 1 . . . . . . . . . . . . . . . 4 Watcher 16 | . 1 . 3 . . . 3 . . . 1 1 2 . . . . . 2 . 1 . . . . . 1 1 . Swarmer 67 | . 4 . 3 4 . . 4 . . . . 9 3 8 4 3 2 4 5 . . . 6 . 2 . 6 . . Saboteur 9 | . . . . . . . . . . . . . . . . . . 3 . . . . . . . . . . 6 Grunt 136 | . 3 2 5 . . . 1 . 5 2 11 7 11 4 . 19 2 10 2 . . 2 7 . 4 . 11 3 25 Brawler 16 | . . . . . . . . . 3 . . . . . . 1 . . . . . . 5 . . . . 1 6 Duelist 14 | . . . . . . . 1 . 1 . . . . 1 . 2 . . . . . . 1 . . . . . 8 Protector 5 | . . . . . . . . . . . . . . . . . . . . . . . . . 4 . . . 1 Sentry 38 | . . . 3 1 . . 6 . 1 . 3 1 3 6 . 4 . . 2 . . 1 2 . 1 . 3 1 . Demolisher 4 | . . . . . . . . . . . . . . . . . . . . . . . . . 4 . . . . Specialist 4 | . . . . . . . . . . . . . . . . 2 . . . . . . . . . . 2 . . Hunter 27 | . . . . . . . 1 . . . 4 4 3 . . 6 . 2 . . . . 2 . . . . 2 3 Programmer 42 | . . . . . . . . 1 . . 4 1 7 . . 2 . 4 . . . . 3 . . 3 1 15 1 Behemoth 9 | . . . . . . . . . . . . 1 . . . 1 . 2 . . . 1 . . 1 . 2 1 . Investigator 1 | . . . . . . . . . . . . . . . . . . . . . . . . . . . . . 1 Striker 2 | . . . . . . . . . . . . . . . . . . . . . . . . . . . . . 2 Executioner 2 | . . . . . . . . . . . . . . . . 1 . . . . . . . . . . . . 1 Assembled 13 | . . 1 . . . . . . . . . . . . . . . . . . . . . . . . . 12 . Best Kill Streak 30 | . 5 2 4 2 . . 5 1 6 2 5 4 9 11 4 6 2 8 3 . 1 3 10 . 4 5 11 11 30 Combat Bots Only 25 | . 4 2 3 2 . . 3 1 6 2 4 4 5 11 4 6 2 8 2 . . 3 10 . 4 2 11 11 25 Max Kills in Single Turn 5 | . 1 1 2 2 . . 2 1 1 1 1 2 1 2 1 2 1 2 1 . 1 1 4 . 1 2 2 2 5 Gunslinging 1 | . . . 1 1 . . 1 . . . . . . 1 . 1 . . . . . . . . . . . . . Exploded 5 | . . . . . . . . . . . . . . . . . . . . . . 1 3 . . . 2 . 5 Melee 1 | . . . . . . . . . . . . . . . . . . 1 . . . . . . . . . . . Uniques/NPCs Destroyed . | . . . . . . . . . . . . . . . . . . . . . . . . . . . . . . Combat | -11 -10 -10 -9 -9 -9 -8 -8 -7 -7 -7 -6 -6 -6 -6 -5 -5 -5 -5 -5 -5 -4 -4 -4 -4 -3 -3 -3 -2 -2 -------- Run | Jun Mat Min Mat Min Exi Min Mat Fac Low Low Fac Gar Fac Gar Fac Gar Fac Gar Fac Upp Fac Upp Upp Zhi Pro Res Gar Res Qua Damage Taken 27236 | . 132 90 281 38 . 33 321 28 1021 130 1196 1422 2238 918 222 4652 224 3247 157 . . 467 915 . 694 132 1479 1147 6052 Core 3281 | . 11 14 78 . . 18 34 . 79 47 79 131 171 93 16 598 50 294 14 . . 35 41 . 53 28 32 102 1263 Absorbed by Shields 2034 | . . . . . . . . . . . . . . . . . . . . . . . . . . . . 763 1271 Reduced by Siege Mode 452 | . . . . . . . . . . . . . . . . . . 452 . . . . . . . . . . . Redirected to Shielding 147 | . . . . . . . . . . . . . . . . . . . . . . . . . . . 89 58 . Regen/Repaired (Parts) 530 | . . . . . . . . 126 . . 239 . 34 . . . . . 131 . . . . . . . . . . Core Remaining (%) 74 | 100 . 90 . . . 76 93 . . 82 . . . 44 . . . . . 2 . . . . 88 . 95 . . Volleys Fired 1140 | . 23 11 42 8 . 2 40 3 31 7 97 76 134 60 8 166 13 74 18 . 5 15 49 . 56 9 55 71 67 Largest 3 | . 2 2 2 2 . 2 2 2 2 2 2 2 2 2 2 2 2 2 2 . 2 3 3 . 3 3 3 3 3 Hottest 345 | . 70 70 70 76 . 76 100 100 100 53 93 93 86 56 56 114 177 240 240 . 240 289 226 . 258 282 345 345 291 Shots Fired 2347 | . 46 23 81 16 . 4 80 6 62 15 121 151 265 119 16 326 25 144 36 . 10 33 101 . 151 26 141 187 162 Gun 908 | . 46 23 81 16 . 4 42 3 41 15 14 25 181 119 16 282 . . . . . . . . . . . . . Cannon 1403 | . . . . . . . 38 3 21 . 107 126 84 . . 44 25 144 36 . 10 30 95 . 151 26 130 187 146 Launcher 36 | . . . . . . . . . . . . . . . . . . . . . . 3 6 . . . 11 . 16 Special . | . . . . . . . . . . . . . . . . . . . . . . . . . . . . . . Kinetic 1501 | . 23 12 42 8 . 2 47 3 31 15 121 151 265 119 16 326 13 70 . . . 3 49 . 56 9 39 35 46 Thermal 713 | . 23 11 39 8 . 2 33 3 31 . . . . . . . 12 74 36 . 10 27 46 . 39 17 91 152 59 Explosive 36 | . . . . . . . . . . . . . . . . . . . . . . 3 6 . . . 11 . 16 Electromagnetic 97 | . . . . . . . . . . . . . . . . . . . . . . . . . 56 . . . 41 Robot Hit Streak 124 | . 22 43 64 26 . 16 32 8 66 80 124 53 24 24 12 39 34 31 19 . 4 11 27 . 40 41 32 29 51 Robot Miss Streak 4 | . 1 . 1 1 . . 1 . . . 2 2 3 1 1 2 2 4 1 . 4 1 2 . 2 1 1 2 1 Penetration Max 2 | . . . . . . . . . . . 1 1 1 . . 2 . . . . . . 1 . 1 1 . . . Secondary Targets 18 | . . . 3 1 . . 1 . . . . . 2 2 . 9 . . . . . . . . . . . . . Max Gunslinging Chain 1 | . . . 1 1 . . 1 . . . . . 1 1 . 1 . . . . . . . . . . . . . Shots Hit Robots 1843 | . 39 21 71 13 . 4 70 6 58 14 104 119 213 84 13 279 16 107 28 . 5 27 80 . 126 18 88 114 126 Core Hits 857 | . 14 9 29 8 . . 41 2 23 6 36 43 88 38 5 106 5 33 14 . 4 7 46 . 47 10 43 48 152 Critical Kills 31 | . . . . . . . . . . . . . 5 4 . 7 . 2 . . . 1 2 . 2 . 5 3 . Critical Parts Destroyed 20 | . . . . . . . 1 . . . . 2 3 3 . 11 . . . . . . . . . . . . . Critical Strikes 113 | . 2 1 3 . . . 7 1 2 . 13 12 10 7 . 24 . 8 . . . 1 5 . 5 1 5 5 1 Burn 14 | . 2 1 3 . . . 5 1 2 . . . . . . . . . . . . . . . . . . . . Meltdown 15 | . . . . . . . . . . . . . . . . . . 2 . . . 1 2 . 2 . 5 3 . Destroy 38 | . . . . . . . 1 . . . . 2 8 7 . 20 . . . . . . . . . . . . . Blast 46 | . . . . . . . 1 . . . 13 10 2 . . 4 . 6 . . . . 3 . 3 1 . 2 1 Melee Attacks . | . . . . . . . . . . . . . . . . . . . . . . . . . . . . . . Impact . | . . . . . . . . . . . . . . . . . . . . . . . . . . . . . . Slashing . | . . . . . . . . . . . . . . . . . . . . . . . . . . . . . . Piercing . | . . . . . . . . . . . . . . . . . . . . . . . . . . . . . . Sneak Attacks . | . . . . . . . . . . . . . . . . . . . . . . . . . . . . . . Combat Hostiles . | . . . . . . . . . . . . . . . . . . . . . . . . . . . . . . Follow-up Attacks . | . . . . . . . . . . . . . . . . . . . . . . . . . . . . . . Damage Inflicted 67531 | . 508 267 887 183 . 43 1323 151 984 253 4538 3181 4926 1585 227 6812 557 4389 1268 . 263 1186 4316 . 4128 949 4602 5450 14555 Guns 14902 | . 508 267 884 178 . 43 533 51 558 253 301 452 3434 1585 227 5628 . . . . . . . . . . . . . Cannons 39115 | . . . . . . . 790 88 426 . 4228 2729 1415 . . 1184 557 4389 1227 . 263 964 3112 . 4036 949 2881 5309 4568 Explosions 13267 | . . . . . . . . . . . . . . . . . . . 41 . . 222 1204 . 92 . 1721 . 9987 Melee . | . . . . . . . . . . . . . . . . . . . . . . . . . . . . . . Ramming 247 | . . . 3 5 . . . 12 . . 9 . 77 . . . . . . . . . . . . . . 141 . Kinetic 31459 | . 244 128 437 62 . 14 898 88 531 253 4529 3181 4849 1585 227 6812 219 1739 . . . 36 1324 . 1338 257 512 915 1281 Thermal 20417 | . 264 139 447 116 . 29 425 51 453 . . . . . . . 338 2650 1268 . 263 928 1788 . 1405 692 2369 4394 2398 Explosive 12779 | . . . . . . . . . . . . . . . . . . . . . . 222 1204 . . . 1721 . 9632 Electromagnetic 2629 | . . . . . . . . . . . . . . . . . . . . . . . . . 1385 . . . 1244 Impact . | . . . . . . . . . . . . . . . . . . . . . . . . . . . . . . Slashing . | . . . . . . . . . . . . . . . . . . . . . . . . . . . . . . Piercing . | . . . . . . . . . . . . . . . . . . . . . . . . . . . . . . Highest Corruption 11 | . 2 2 . . . . . 1 1 1 1 2 . . . . . 2 . . . . . . . . . . 11 Average Corruption 1 | . 1 2 . . . . . 1 1 1 1 1 . . . . . 1 . . . . . . . . . . 7 Corruption Purged 4 | . . . . . . . . . . . . 2 . . . . . 2 . . . . . . . . . . . Corruption Blocked 31 | . . . . . . . . . . . . . 5 1 . 7 . 3 . . . . . . . 1 . 6 8 Effects 73 | . . 14 . . . . . 4 8 9 19 16 . . . . . . . . . . . . . . . . 3 Message Errors 22 | . . 4 . . . . . 1 2 3 5 5 . . . . . . . . . . . . . . . . 2 Matter Fused 14 | . . 4 . . . . . 1 2 4 2 1 . . . . . . . . . . . . . . . . . Heat Flow Errors 5 | . . 2 . . . . . . 1 . 2 . . . . . . . . . . . . . . . . . . Energy Discharges 12 | . . 1 . . . . . . 2 1 4 4 . . . . . . . . . . . . . . . . . Parts Rejected 1 | . . . . . . . . . . . . 1 . . . . . . . . . . . . . . . . . Data Loss (minor) 9 | . . . . . . . . 1 1 . 5 1 . . . . . . . . . . . . . . . . 1 Data Loss (major) 4 | . . 1 . . . . . 1 . . 1 1 . . . . . . . . . . . . . . . . . Misfires 3 | . . 1 . . . . . . . 1 . 1 . . . . . . . . . . . . . . . . . Alerts 1 | . . 1 . . . . . . . . . . . . . . . . . . . . . . . . . . . Weapon Failures 2 | . . . . . . . . . . . . 2 . . . . . . . . . . . . . . . . . Overload Shots . | . . . . . . . . . . . . . . . . . . . . . . . . . . . . . . Overflow Damage 1529 | . . . . . . . . . 13 . 324 9 40 . . . 25 167 100 . . 35 60 . 14 8 84 369 281 Projectiles 1176 | . . . . . . . . . 13 . 324 9 37 . . . 25 167 84 . . 35 3 . 14 8 28 369 60 Explosions 350 | . . . . . . . . . . . . . . . . . . . 16 . . . 57 . . . 56 . 221 Melee 3 | . . . . . . . . . . . . . 3 . . . . . . . . . . . . . . . . Knockbacks 135 | . . . . 1 . . 6 3 5 . 30 17 22 . . 4 2 14 . . . . 7 . 1 2 . 11 10 Impact 4 | . . . . 1 . . . 1 . . . . 1 . . . . . . . . . . . . . . 1 . Kinetic 118 | . . . . . . . 4 2 5 . 28 14 18 . . 4 2 12 . . . . 7 . 1 2 . 9 10 Secondary 13 | . . . . . . . 2 . . . 2 3 3 . . . . 2 . . . . . . . . . 1 . Self-Inflicted Damage 520 | . . . . . . . . . . . . . . 79 . . . . 40 . . . 27 . . . 51 . 323 Shots 14 | . . . . . . . . . . . . . . 1 . . . . 1 . . . 2 . . . 2 . 8 Rammed 14 | . . . 1 . . . . 2 . . 1 . 4 . . . . . . . . . . . . . . 6 . Targets Rammed 17 | . . . 1 1 . . . 3 . . 2 . 4 . . . . . . . . . . . . . . 6 . Kicked . | . . . . . . . . . . . . . . . . . . . . . . . . . . . . . . Crushed 3 | . . . . 1 . . . 1 . . 1 . . . . . . . . . . . . . . . . . . Highest Temperature 554 | . 180 228 270 . . . 99 18 329 . 222 . 66 11 . 140 1 103 39 . . 371 15 . 17 48 158 554 339 Average Temperature 88 | . 59 109 82 . . . 27 10 170 . 109 . 11 3 . 60 1 33 24 . . 171 7 . 8 21 36 150 137 Received Heat Transfer 7186 | . 69 66 243 9 . . 180 . 624 108 240 390 798 387 . 1533 36 783 39 . . 78 168 . 90 . 529 202 614 Effects 20 | . . . . . . . . . 1 . . . . . . . . . . . . 1 . . . . . 18 . Shutdowns 4 | . . . . . . . . . . . . . . . . . . . . . . . . . . . . 4 . Energy Bleed 4 | . . . . . . . . . 1 . . . . . . . . . . . . 1 . . . . . 2 . Interference 4 | . . . . . . . . . . . . . . . . . . . . . . . . . . . . 4 . Matter Decay 1 | . . . . . . . . . . . . . . . . . . . . . . . . . . . . 1 . Short Circuit 3 | . . . . . . . . . . . . . . . . . . . . . . . . . . . . 3 . Damage (major) 4 | . . . . . . . . . . . . . . . . . . . . . . . . . . . . 4 . Siege Activations 3 | . . . . . . . . . . . . . . . . . 1 2 . . . . . . . . . . . Total Turns 77 | . . . . . . . . . . . . . . . . . 1 76 . . . . . . . . . . . Longest Duration 53 | . . . . . . . . . . . . . . . . . 1 53 . . . . . . . . . . . Robots Corrupted 1 | . . . . . . . . . . . . . . . . . . . . . . . . . 1 . . . . Combat Hostiles 1 | . . . . . . . . . . . . . . . . . . . . . . . . . 1 . . . . Parts Fried 10 | . . . . . . . . . . . . . . . . . . . . . . . . . 8 . . . 2 Impact Corruptions 3 | . . . . . . . . . . . . . 3 . . . . . . . . . . . . . . . . Robots Melted 15 | . . . . . . . . . . . . . . . . . . 2 . . . 1 2 . 2 . 5 3 . Combat Hostiles 14 | . . . . . . . . . . . . . . . . . . 2 . . . 1 2 . 1 . 5 3 . Parts Melted 33 | . 2 . . . . . 2 . 3 . . . . . . . . 2 3 . . 3 1 . 2 1 8 6 . Heat Transferred 22011 | . 925 481 1554 296 . 74 1443 185 1295 . . . . . . . 296 2183 1123 . 222 814 1517 . 1107 555 2218 3737 1986 Parts Sabotaged 5 | . . . . . . . . . . . . . . . . . . 3 . . . . 2 . . . . . . Parts Stolen . | . . . . . . . . . . . . . . . . . . . . . . . . . . . . . . Parts Stripped . | . . . . . . . . . . . . . . . . . . . . . . . . . . . . . . Power Chain Reactions 2 | . . . . . . . . . . . . . . . . . . . . . . . . . 1 . . . 1 Missiles Intercepted . | . . . . . . . . . . . . . . . . . . . . . . . . . . . . . . Alert | -11 -10 -10 -9 -9 -9 -8 -8 -7 -7 -7 -6 -6 -6 -6 -5 -5 -5 -5 -5 -5 -4 -4 -4 -4 -3 -3 -3 -2 -2 ------- Run | Jun Mat Min Mat Min Exi Min Mat Fac Low Low Fac Gar Fac Gar Fac Gar Fac Gar Fac Upp Fac Upp Upp Zhi Pro Res Gar Res Qua Peak Influence 3013 | . 188 56 216 139 . 31 192 34 . . 170 715 296 637 340 1535 698 1112 589 . 90 . . . . 120 965 528 3013 Initial 598 | . . 1 . 35 . . . 34 . . 24 25 278 16 248 183 598 376 433 . 50 . . . . . . 407 1 Average 301 | . 76 10 94 36 . 12 60 13 . . 50 380 81 395 285 917 634 821 418 . 71 . . . . 13 580 196 2113 Maximum Alert Level 5 | . . . 1 . . . . . . . . 3 1 2 1 4 2 4 2 . . . . . . . 3 2 5 Low Security (%) 61 | 100 100 100 81 100 . 100 100 100 . . 100 20 88 20 . 3 . . 8 . 100 . . . . 100 24 51 . Level 1 10 | . . . 18 . . . . . . . . 35 11 9 100 16 . 5 23 . . . . . . . 6 24 . Level 2 14 | . . . . . . . . . . . . 41 . 69 . 10 100 11 67 . . . . . . . 27 24 . Level 3 7 | . . . . . . . . . . . . 2 . . . 23 . 70 . . . . . . . . 40 . . Level 4 4 | . . . . . . . . . . . . . . . . 46 . 11 . . . . . . . . . . . Level 5 . | . . . . . . . . . . . . . . . . . . . . . . . . . . . . . . High Security . | . . . . . . . . . . . . . . . . . . . . . . . . . . . . . . Max Security 1 | . . . . . . . . . . . . . . . . . . . . . . . . . . . . . 99 Squads Dispatched 62 | . . . 1 . . . . 3 . . 8 . 11 . . . 5 . 1 . 3 . 1 . . 1 . 8 20 Investigation 4 | . . . . . . . . . . . 1 . 1 . . . . . . . 1 . . . . . . 1 . Extermination 22 | . . . . . . . . 2 . . 5 . 6 . . . 1 . 1 . 1 . . . . 1 . 5 . Reinforcement 10 | . . . 1 . . . . 1 . . 2 . 4 . . . . . . . 1 . . . . . . 1 . Assault 23 | . . . . . . . . . . . . . . . . . 1 . . . . . 1 . . . . 1 20 Garrison 3 | . . . . . . . . . . . . . . . . . 3 . . . . . . . . . . . . Intercept . | . . . . . . . . . . . . . . . . . . . . . . . . . . . . . . Searches Triggered . | . . . . . . . . . . . . . . . . . . . . . . . . . . . . . . Construction Impeded . | . . . . . . . . . . . . . . . . . . . . . . . . . . . . . . Haulers Reinforced 5 | . . . . . . . . . . . 2 . 2 . . . . . . . . . . . . . . 1 . Active Scanning Responses . | . . . . . . . . . . . . . . . . . . . . . . . . . . . . . . Cargo Convoy Interrupts . | . . . . . . . . . . . . . . . . . . . . . . . . . . . . . . Stealth | -11 -10 -10 -9 -9 -9 -8 -8 -7 -7 -7 -6 -6 -6 -6 -5 -5 -5 -5 -5 -5 -4 -4 -4 -4 -3 -3 -3 -2 -2 --------- Run | Jun Mat Min Mat Min Exi Min Mat Fac Low Low Fac Gar Fac Gar Fac Gar Fac Gar Fac Upp Fac Upp Upp Zhi Pro Res Gar Res Qua Distress Signals 27 | . 1 . 3 . . . 3 . . . . . 2 . . . . . 1 . . . . . 14 . 1 1 1 Communications Jammed . | . . . . . . . . . . . . . . . . . . . . . . . . . . . . . . Distress Signals . | . . . . . . . . . . . . . . . . . . . . . . . . . . . . . . Times Spotted 531 | . 18 4 17 7 . 1 21 3 12 2 30 30 49 19 6 48 5 28 10 . 2 4 29 . 19 4 27 38 98 Peak Tracking Total 26 | . 3 3 3 2 . 1 3 2 7 2 4 5 6 4 3 6 3 8 3 . 2 2 8 . 2 3 5 4 26 Tactical Retreats 53 | . 3 . . . . . 1 . 1 . 5 8 8 . . 10 . 8 . . . . 1 . 3 1 1 2 1 Traps | -11 -10 -10 -9 -9 -9 -8 -8 -7 -7 -7 -6 -6 -6 -6 -5 -5 -5 -5 -5 -5 -4 -4 -4 -4 -3 -3 -3 -2 -2 ------- Run | Jun Mat Min Mat Min Exi Min Mat Fac Low Low Fac Gar Fac Gar Fac Gar Fac Gar Fac Upp Fac Upp Upp Zhi Pro Res Gar Res Qua Traps Triggered 25 | . 4 . . . . . 1 . . . . 3 5 1 . 3 . 3 1 . 1 . . . . . 1 1 1 Indirectly . | . . . . . . . . . . . . . . . . . . . . . . . . . . . . . . Trap Hack Attempts . | . . . . . . . . . . . . . . . . . . . . . . . . . . . . . . Triggered . | . . . . . . . . . . . . . . . . . . . . . . . . . . . . . . Disarmed . | . . . . . . . . . . . . . . . . . . . . . . . . . . . . . . Reprogrammed . | . . . . . . . . . . . . . . . . . . . . . . . . . . . . . . Reused . | . . . . . . . . . . . . . . . . . . . . . . . . . . . . . . Traps Extracted . | . . . . . . . . . . . . . . . . . . . . . . . . . . . . . . Installed . | . . . . . . . . . . . . . . . . . . . . . . . . . . . . . . Triggered 2 | . . . . . . . . . 1 1 . . . . . . . . . . . . . . . . . . . Exploded 1 | . . . . . 1 . . . . . . . . . . . . . . . . . . . . . . . . Machines | -11 -10 -10 -9 -9 -9 -8 -8 -7 -7 -7 -6 -6 -6 -6 -5 -5 -5 -5 -5 -5 -4 -4 -4 -4 -3 -3 -3 -2 -2 ---------- Run | Jun Mat Min Mat Min Exi Min Mat Fac Low Low Fac Gar Fac Gar Fac Gar Fac Gar Fac Upp Fac Upp Upp Zhi Pro Res Gar Res Qua Machines Disabled 40 | . . . . . . . . . . . 2 1 1 6 . 3 . 1 4 . . 1 . . . . 10 1 10 Max in Single Turn 4 | . . . . . . . . . . . 1 1 1 2 . 1 . 1 4 . . 1 . . . . 2 1 2 Garrison Relay 5 | . . . . . . . . . . . . 2 . . . 1 . . . . . . . . . . 2 . . Phase Generator 1 | . . . . . . . . . . . . . . 1 . . . . . . . . . . . . . . . Machines Repaired . | . . . . . . . . . . . . . . . . . . . . . . . . . . . . . . Machines Sabotaged . | . . . . . . . . . . . . . . . . . . . . . . . . . . . . . . Overloaded Fab Kills . | . . . . . . . . . . . . . . . . . . . . . . . . . . . . . . Hacking | -11 -10 -10 -9 -9 -9 -8 -8 -7 -7 -7 -6 -6 -6 -6 -5 -5 -5 -5 -5 -5 -4 -4 -4 -4 -3 -3 -3 -2 -2 --------- Run | Jun Mat Min Mat Min Exi Min Mat Fac Low Low Fac Gar Fac Gar Fac Gar Fac Gar Fac Upp Fac Upp Upp Zhi Pro Res Gar Res Qua Machines Accessed 35 | . . . . . 5 . . 2 1 . 2 2 4 2 1 1 1 . 3 . 1 1 . 3 . 1 3 2 . Terminals 13 | . . . . . . . . 1 . . . 2 1 2 . 1 . . 1 . 1 . . . . . 3 1 . Fabricators 1 | . . . . . . . . . . . . . . . . . . . 1 . . . . . . . . . . Repair Stations 5 | . . . . . . . . 1 . . 1 . 1 . . . . . 1 . . . . . . . . 1 . Recycling Units . | . . . . . . . . . . . . . . . . . . . . . . . . . . . . . . Scanalyzers 1 | . . . . . . . . . . . . . 1 . . . . . . . . . . . . . . . . Garrison Access 5 | . . . . . . . . . . . 1 . 1 . 1 . 1 . . . . . . . . 1 . . . Total Hacks 125 | . . . . . 50 . . 3 1 . 5 2 8 6 1 1 1 . 6 . 4 1 . 29 . 1 3 3 . Successful 115 | . . . . . 50 . . 3 1 . 5 2 7 2 1 1 1 . 3 . 4 1 . 29 . 1 3 1 . Failed 10 | . . . . . . . . . . . . . 1 4 . . . . 3 . . . . . . . . 2 . Catastrophic . | . . . . . . . . . . . . . . . . . . . . . . . . . . . . . . Database Lockouts . | . . . . . . . . . . . . . . . . . . . . . . . . . . . . . . Manual 1 | . . . . . 1 . . . . . . . . . . . . . . . . . . . . . . . . Terminals 21 | . . . . . . . . 1 . . . 2 2 6 . 1 . . 1 . 4 . . . . . 3 1 . Fabricators 2 | . . . . . . . . . . . . . . . . . . . 2 . . . . . . . . . . Repair Stations 14 | . . . . . . . . 2 . . 4 . 3 . . . . . 3 . . . . . . . . 2 . Recycling Units . | . . . . . . . . . . . . . . . . . . . . . . . . . . . . . . Scanalyzers 1 | . . . . . . . . . . . . . 1 . . . . . . . . . . . . . . . . Garrison Access 6 | . . . . . . . . . . . 1 . 2 . 1 . 1 . . . . . . . . 1 . . . Terminal Hacks 98 | . . . . . 50 . . 1 1 . . 2 2 2 . 1 . . 1 . 4 1 . 29 . . 3 1 . Record 80 | . . . . . 49 . . . . . . . . . . . . . . . 1 1 . 29 . . . . . Open Door 2 | . . . . . . . . . 1 . . . . . . . . . . . . . . . . . . 1 . Open DSF 1 | . . . . . . . . . . . . . . . . . . . 1 . . . . . . . . . . Branch Access Points 1 | . . . . . . . . . . . . . . . . . . . . . 1 . . . . . . . . Emergency Access Points 5 | . . . . . . . . . . . . 1 . 1 . 1 . . . . 1 . . . . . 1 . . Alert Level 1 | . . . . . . . . . . . . . 1 . . . . . . . . . . . . . . . . Unreport Threat 1 | . . . . . . . . 1 . . . . . . . . . . . . . . . . . . . . . Locate Traps 2 | . . . . . . . . . . . . . 1 . . . . . . . 1 . . . . . . . . Garrison Registry 2 | . . . . . . . . . . . . . . 1 . . . . . . . . . . . . 1 . . Patrol Navigation 2 | . . . . . . . . . . . . 1 . . . . . . . . . . . . . . 1 . . EX-Prototype ID Bank 1 | . . . . . 1 . . . . . . . . . . . . . . . . . . . . . . . . Fabricator Hacks . | . . . . . . . . . . . . . . . . . . . . . . . . . . . . . . Repair Station Hacks 10 | . . . . . . . . 2 . . 4 . 2 . . . . . 2 . . . . . . . . . . Scan Component 5 | . . . . . . . . 1 . . 2 . 1 . . . . . 1 . . . . . . . . . . Repair 5 | . . . . . . . . 1 . . 2 . 1 . . . . . 1 . . . . . . . . . . Recycling Unit Hacks . | . . . . . . . . . . . . . . . . . . . . . . . . . . . . . . Scanalyzer 1 | . . . . . . . . . . . . . 1 . . . . . . . . . . . . . . . . Insert Component 1 | . . . . . . . . . . . . . 1 . . . . . . . . . . . . . . . . Garrison Access Hacks 6 | . . . . . . . . . . . 1 . 2 . 1 . 1 . . . . . . . . 1 . . . Unlock Access 5 | . . . . . . . . . . . 1 . 1 . 1 . 1 . . . . . . . . 1 . . . Coupler Status 1 | . . . . . . . . . . . . . 1 . . . . . . . . . . . . . . . . Unauthorized Hacks . | . . . . . . . . . . . . . . . . . . . . . . . . . . . . . . Terminals . | . . . . . . . . . . . . . . . . . . . . . . . . . . . . . . Fabricators . | . . . . . . . . . . . . . . . . . . . . . . . . . . . . . . Repair Stations . | . . . . . . . . . . . . . . . . . . . . . . . . . . . . . . Recycling Units . | . . . . . . . . . . . . . . . . . . . . . . . . . . . . . . Scanalyzers . | . . . . . . . . . . . . . . . . . . . . . . . . . . . . . . Garrison Access . | . . . . . . . . . . . . . . . . . . . . . . . . . . . . . . Data Cores Recovered . | . . . . . . . . . . . . . . . . . . . . . . . . . . . . . . Used . | . . . . . . . . . . . . . . . . . . . . . . . . . . . . . . Hacking Detections 12 | . . . . . . . . . . . 1 . 2 2 . 1 1 . 2 . . . . . . 1 1 1 . Full Trace Events 4 | . . . . . . . . . . . 1 . 1 1 . . . . . . . . . . . . . 1 . Feedback Events 1 | . . . . . . . . . . . . . . 1 . . . . . . . . . . . . . . . Corruption 1 | . . . . . . . . . . . . . . 1 . . . . . . . . . . . . . . . Feedback Blocked . | . . . . . . . . . . . . . . . . . . . . . . . . . . . . . . Robot Schematics Acquired . | . . . . . . . . . . . . . . . . . . . . . . . . . . . . . . Robots Built . | . . . . . . . . . . . . . . . . . . . . . . . . . . . . . . Authchips . | . . . . . . . . . . . . . . . . . . . . . . . . . . . . . . Time . | . . . . . . . . . . . . . . . . . . . . . . . . . . . . . . Total Robot Build Rating . | . . . . . . . . . . . . . . . . . . . . . . . . . . . . . . Part Schematics Acquired . | . . . . . . . . . . . . . . . . . . . . . . . . . . . . . . Parts Built . | . . . . . . . . . . . . . . . . . . . . . . . . . . . . . . Authchips . | . . . . . . . . . . . . . . . . . . . . . . . . . . . . . . Time . | . . . . . . . . . . . . . . . . . . . . . . . . . . . . . . Total Part Build Rating . | . . . . . . . . . . . . . . . . . . . . . . . . . . . . . . Parts Repaired 5 | . . . . . . . . 1 . . 2 . 1 . . . . . 1 . . . . . . . . . . Time 138 | . . . . . . . . 38 . . 44 . 19 . . . . . 37 . . . . . . . . . . Parts Recycled . | . . . . . . . . . . . . . . . . . . . . . . . . . . . . . . Recycled Matter . | . . . . . . . . . . . . . . . . . . . . . . . . . . . . . . Retrieved Matter . | . . . . . . . . . . . . . . . . . . . . . . . . . . . . . . Retrieved Components . | . . . . . . . . . . . . . . . . . . . . . . . . . . . . . . Parts Scanalyzed . | . . . . . . . . . . . . . . . . . . . . . . . . . . . . . . Part Schematics Acquired . | . . . . . . . . . . . . . . . . . . . . . . . . . . . . . . Parts Damaged . | . . . . . . . . . . . . . . . . . . . . . . . . . . . . . . Bothacking | -11 -10 -10 -9 -9 -9 -8 -8 -7 -7 -7 -6 -6 -6 -6 -5 -5 -5 -5 -5 -5 -4 -4 -4 -4 -3 -3 -3 -2 -2 ------------ Run | Jun Mat Min Mat Min Exi Min Mat Fac Low Low Fac Gar Fac Gar Fac Gar Fac Gar Fac Upp Fac Upp Upp Zhi Pro Res Gar Res Qua Used RIF Installer 5 | . . . . . . . . . . . . 1 . 1 . . . 2 . . . . . . . . 1 . . Command Fork 1 | . . . . . . . . . . . . . . . . . . 1 . . . . . . . . . . . Signal Jammer 1 | . . . . . . . . . . . . . . . . . . . . . . . . . . . 1 . . Robot Detection 1 | . . . . . . . . . . . . . . . . . . 1 . . . . . . . . . . . Program Shield 1 | . . . . . . . . . . . . . . 1 . . . . . . . . . . . . . . . Robots Hacked . | . . . . . . . . . . . . . . . . . . . . . . . . . . . . . . Non-combat . | . . . . . . . . . . . . . . . . . . . . . . . . . . . . . . Combat . | . . . . . . . . . . . . . . . . . . . . . . . . . . . . . . Robot Hacks Applied . | . . . . . . . . . . . . . . . . . . . . . . . . . . . . . . Relay Couplers Released 27 | . . . . . . . . . . . . 8 4 . . 4 . 3 . . . . . . . . 8 . . Machine Destruction 20 | . . . . . . . . . . . . 8 . . . 4 . . . . . . . . . . 8 . . Programmers 7 | . . . . . . . . . . . . . 4 . . . . 3 . . . . . . . . . . . Attached 1 | . . . . . . . . . . . . . 1 . . . . . . . . . . . . . . . . Fabnet Peak Effective % . | . . . . . . . . . . . . . . . . . . . . . . . . . . . . . . Robots Rewired . | . . . . . . . . . . . . . . . . . . . . . . . . . . . . . . Allies Hacked . | . . . . . . . . . . . . . . . . . . . . . . . . . . . . . . Hacks Repelled . | . . . . . . . . . . . . . . . . . . . . . . . . . . . . . . Allies | -11 -10 -10 -9 -9 -9 -8 -8 -7 -7 -7 -6 -6 -6 -6 -5 -5 -5 -5 -5 -5 -4 -4 -4 -4 -3 -3 -3 -2 -2 -------- Run | Jun Mat Min Mat Min Exi Min Mat Fac Low Low Fac Gar Fac Gar Fac Gar Fac Gar Fac Upp Fac Upp Upp Zhi Pro Res Gar Res Qua Total Allies 6 | . . . . 4 . . . . . . . . . . . . . . . 1 . . . . . . 1 . . Largest Group 4 | . . . . 4 3 3 2 . . . . . . . . . . . . 1 . . . . . . 1 . . Highest-Rated Group 140 | . . . . 71 40 40 24 . . . . . . . . . . . . 140 . . . . . . 46 . . Highest-Rated Ally 140 | . . . . 31 16 16 16 . . . . . . . . . . . . 140 . . . . . . 46 . . Total Orders . | . . . . . . . . . . . . . . . . . . . . . . . . . . . . . . Ally Attacks 21 | . . . . 11 . 5 4 . . . . . . . . . . . . . . . . . . . 1 . . Total Damage 237 | . . . . 125 . 61 14 . . . . . . . . . . . . . . . . . . . 37 . . Kills 5 | . . . . 3 . 1 1 . . . . . . . . . . . . . . . . . . . . . . Allies Corrupted . | . . . . . . . . . . . . . . . . . . . . . . . . . . . . . . Allies Melted . | . . . . . . . . . . . . . . . . . . . . . . . . . . . . . . Intel | -11 -10 -10 -9 -9 -9 -8 -8 -7 -7 -7 -6 -6 -6 -6 -5 -5 -5 -5 -5 -5 -4 -4 -4 -4 -3 -3 -3 -2 -2 ------- Run | Jun Mat Min Mat Min Exi Min Mat Fac Low Low Fac Gar Fac Gar Fac Gar Fac Gar Fac Upp Fac Upp Upp Zhi Pro Res Gar Res Qua Robot Analysis Total . | . . . . . . . . . . . . . . . . . . . . . . . . . . . . . . Derelict Logs Recovered 8 | . . 2 . 2 . . . . 1 2 . . . . . . . . . . . 1 . . . . . . . Drone Launches . | . . . . . . . . . . . . . . . . . . . . . . . . . . . . . . Drone Recoveries . | . . . . . . . . . . . . . . . . . . . . . . . . . . . . . . Exploration | -11 -10 -10 -9 -9 -9 -8 -8 -7 -7 -7 -6 -6 -6 -6 -5 -5 -5 -5 -5 -5 -4 -4 -4 -4 -3 -3 -3 -2 -2 ------------- Run | Jun Mat Min Mat Min Exi Min Mat Fac Low Low Fac Gar Fac Gar Fac Gar Fac Gar Fac Upp Fac Upp Upp Zhi Pro Res Gar Res Qua Turns Passed 34570 | 121 895 917 712 1079 1081 563 1980 843 1326 738 3152 1796 3345 1023 139 2377 366 1382 889 66 384 655 1970 253 2007 434 1166 2445 466 Spaces Moved 15707 | 58 419 454 332 628 657 333 802 422 729 448 855 801 1186 506 69 1068 189 685 458 34 226 381 1139 147 1140 239 618 515 169 Core 26 | 24 . . . . . . . . . . . . . . . . . . . . . . . . . . . . 2 Treads 14491 | . . . 223 628 657 333 802 422 729 448 855 801 1186 506 69 894 189 685 458 34 226 381 1139 147 1140 239 618 515 167 Legs 1103 | 34 419 454 22 . . . . . . . . . . . . 174 . . . . . . . . . . . . . Wheels . | . . . . . . . . . . . . . . . . . . . . . . . . . . . . . . Hover . | . . . . . . . . . . . . . . . . . . . . . . . . . . . . . . Flight 87 | . . . 87 . . . . . . . . . . . . . . . . . . . . . . . . . . Fastest Speed 50 | 50 120 190 109 160 160 160 158 155 158 158 158 165 158 155 155 120 160 158 152 158 158 158 152 158 155 156 150 150 150 Average Speed 164 | 147 183 190 156 160 160 160 160 157 158 158 227 177 160 157 155 155 160 160 157 158 158 158 157 158 157 156 153 150 160 Slowest Speed 1200 | 200 190 190 190 160 160 160 163 158 158 158 241 246 243 158 156 260 163 163 158 158 158 158 158 158 158 156 158 150 1200 Overloaded Moves . | . . . . . . . . . . . . . . . . . . . . . . . . . . . . . . Propulsion Burnouts . | . . . . . . . . . . . . . . . . . . . . . . . . . . . . . . Robots Hopped . | . . . . . . . . . . . . . . . . . . . . . . . . . . . . . . Cave-ins Triggered 5 | . . . . . . . . . . . . . . . . 1 . 1 . . . . . . . . . 2 1 Teleports 1 | . . . . . . . . . . . . . . . . . . . . . . . . . . . . . 1 Exploration Rate (%) 51 | 5 81 98 35 97 93 78 69 10 78 58 18 76 33 73 3 77 9 60 19 9 9 60 94 63 95 7 90 14 20 Regions Visited 29 Branch Regions 12 Pre-discovered Areas 5 | . . 2 . 1 1 . . . . . . . . . . . . . . . . 1 . . . . . . . Known Exits Taken 23 | 1 1 1 1 1 1 1 1 1 1 1 1 . 1 . 1 . 1 . 1 . 1 1 1 1 1 1 . 1 . Unknown Exits Taken 1 | . . . . . . . . . . . . . . . . . . . . 1 . . . . . . . . . Scrap Searched 10 | . . 1 . 2 . . . . 1 1 . . . . . . . . . . . 2 2 . 1 . . . . Spaces Dug 66 | . . . . . . . . . . . 2 1 . . . . . 3 26 . . . . . . . . 28 6 Terrain Destroyed 730 | . . . . . . . 1 . 1 1 20 10 3 74 . 14 10 22 29 . 3 34 152 . 12 2 154 54 134 Melee . | . . . . . . . . . . . . . . . . . . . . . . . . . . . . . . Projectile 220 | . . . . . . . 1 . 1 1 20 10 3 1 . 13 10 22 4 . 3 4 19 . 12 2 25 54 15 AOE 509 | . . . . . . . . . . . . . . 73 . . . . 25 . . 30 133 . . . 129 . 119 Terrain Rammed . | . . . . . . . . . . . . . . . . . . . . . . . . . . . . . . Walls Destroyed . | . . . . . . . . . . . . . . . . . . . . . . . . . . . . . . Machines Disabled . | . . . . . . . . . . . . . . . . . . . . . . . . . . . . . . Actions | -11 -10 -10 -9 -9 -9 -8 -8 -7 -7 -7 -6 -6 -6 -6 -5 -5 -5 -5 -5 -5 -4 -4 -4 -4 -3 -3 -3 -2 -2 --------- Run | Jun Mat Min Mat Min Exi Min Mat Fac Low Low Fac Gar Fac Gar Fac Gar Fac Gar Fac Upp Fac Upp Upp Zhi Pro Res Gar Res Qua Total 22377 | 93 499 487 443 685 687 360 1418 591 842 464 1898 1023 2388 614 85 1470 227 824 588 46 245 404 1214 170 1228 281 735 2095 273 Wait 4784 | 18 49 23 36 45 19 23 534 154 62 8 890 120 982 27 . 113 17 29 90 13 . . 17 . . 19 21 1471 4 Move 15680 | 57 418 453 331 627 656 332 801 421 728 447 855 799 1185 505 68 1067 189 684 457 33 225 380 1138 146 1139 239 617 514 169 Hop . | . . . . . . . . . . . . . . . . . . . . . . . . . . . . . . Pick Up 259 | 11 4 . 15 3 3 . 16 4 7 1 19 5 21 9 4 44 4 13 12 . 6 2 5 7 10 6 12 9 7 Fast Attach 20 | . . . 1 . 1 . . . . . 1 4 8 . . 1 . . . . . . . 3 1 . . . . Attach 175 | 7 1 . 4 . 1 1 7 3 2 1 11 6 14 3 2 35 2 16 6 . 2 4 2 6 3 3 9 9 15 Detach 9 | . . . . . . 1 . . . . 2 1 2 . . . . . . . . 1 . . . . . 1 1 Swap 106 | . 3 . 5 1 3 . 9 1 6 . 10 6 11 3 1 11 1 3 2 . 2 1 1 . 9 2 7 4 4 Drop 170 | . 1 . 8 . 4 1 11 2 6 . 11 6 23 7 2 28 1 5 3 . 5 1 1 8 10 3 14 7 2 Fire 1140 | . 23 11 42 8 . 2 40 3 31 7 97 76 134 60 8 166 13 74 18 . 5 15 49 . 56 9 55 71 67 Melee . | . . . . . . . . . . . . . . . . . . . . . . . . . . . . . . Ram . | . . . . . . . . . . . . . . . . . . . . . . . . . . . . . . Kick . | . . . . . . . . . . . . . . . . . . . . . . . . . . . . . . Crush 17 | . . . 1 1 . . . 3 . . 2 . 4 . . . . . . . . . . . . . . 6 . Escape Stasis 13 | . . . . . . . . . . . . . 4 . . 5 . . . . . . . . . . . . 4 Rewire 4 | . . . . . . . . . . . . . . . . . . . . . . . 1 . . . . 3 . Trap . | . . . . . . . . . . . . . . . . . . . . . . . . . . . . . . Miscellaneous . | . . . . . . . . . . . . . . . . . . . . . . . . . . . . . . Route ------- -11/Junkyard -10/Materials (discovered 3 exits: *Mat x2 / *Min) -10/Mines (discovered 2 exits: *Mat x2) -9/Materials (discovered 2 exits: *Mat / *Min) -9/Mines (discovered 3 exits: *Mat x2 / *Exi) -9/Exiles -8/Mines (discovered 2 exits: *Mat x2) -8/Materials -7/Factory -7/Lower Caves -7/Lower Caves -6/Factory (discovered 2 exits: *Fac / Gar) -6/Garrison (discovered 2 exits: *Fac x2) -6/Factory -6/Garrison (discovered 3 exits: *Fac x3) -5/Factory -5/Garrison (discovered 2 exits: *Fac x2) -5/Factory -5/Garrison (discovered 3 exits: *Fac x3) -5/Factory -5/Upper Caves -4/Factory (discovered 2 exits: *Upp x2) -4/Upper Caves -4/Upper Caves (discovered 2 exits: *Res / *Zhi) -4/Zhirov -3/Proximity Caves -3/Research -3/Garrison (discovered 3 exits: *Res x3) -2/Research -2/Quarantine History --------- Turn | Location | Event 6 | -11/Junkyard | Identified exit to Materials 6 | -11/Junkyard | Discovered exit to Materials (range 16) 122 | -11/Junkyard | Entered Materials 122 | -10/Materials | Evolved 1 slot: Utility x1 327 | -10/Materials | Build established: Hacker-Mutant 450 | -10/Materials | Identified exit to Materials 450 | -10/Materials | Discovered exit to Materials (range 7) 654 | -10/Materials | Discovered exit to Materials (range 16) 922 | -10/Materials | Identified exit to Mines 922 | -10/Materials | Discovered exit to Mines (range 12) 1017 | -10/Materials | Entered Mines 1092 | -10/Mines | Discovered exit to Materials (range 10) 1452 | -10/Mines | Assembled infested the area 1511 | -10/Mines | Discovered exit to Materials (range 15) 1553 | -10/Mines | Learned location of Zion (-6) 1711 | -10/Mines | Found a hidden stash of uninstalled traps 1911 | -10/Mines | Learned location of Storage (-9) 1934 | -10/Mines | Entered Materials 1934 | -9/Materials | Evolved 2 slots: Propulsion x1, Utility x1 2245 | -9/Materials | Identified exit to Materials 2245 | -9/Materials | Discovered exit to Materials (range 15) 2533 | -9/Materials | Identified exit to Mines 2533 | -9/Materials | Discovered exit to Mines (range 12) 2646 | -9/Materials | Entered Mines 2651 | -9/Mines | Assisted by bots powering up and referring to "LRC-V3" 2660 | -9/Mines | Met a Derelict bent on vengeance 2691 | -9/Mines | Discovered exit to Materials (range 9) 2731 | -9/Mines | Discovered exit to Materials (range 7) 2819 | -9/Mines | Found a damaged Exp. Sensor Array with a note attached 3146 | -9/Mines | Deemed a non-threat by the Exiles lab entrance 3146 | -9/Mines | Identified exit to Exiles 3146 | -9/Mines | Discovered exit to Exiles (range 5) 3428 | -9/Mines | Received a Mining Laser from a helpful Derelict 3564 | -9/Mines | Learned 2 Materials zone layouts 3725 | -9/Mines | Entered Exiles 3725 | -9/Exiles | Accompanied by 3 allies 3765 | -9/Exiles | Met 8R-AWN 3791 | -9/Exiles | Met EX-HEX 3895 | -9/Exiles | Met EX-DEC 3955 | -9/Exiles | Visited The Gauntlet 4242 | -9/Exiles | Identified exit to Mines 4242 | -9/Exiles | Discovered exit to Mines (range 14) 4380 | -9/Exiles | Met EX-BIN 4413 | -9/Exiles | Aligned with FarCom system 4415 | -9/Exiles | Given EX-Vault access code 4572 | -9/Exiles | Opened EX-Vault 4586 | -9/Exiles | Found Prototype Device 4587 | -9/Exiles | Identified Cloak of Protection 4592 | -9/Exiles | Found Prototype Device 4592 | -9/Exiles | Identified Trap Reconfigurator 4649 | -9/Exiles | Exiles lab attacked by MAIN.C 4806 | -9/Exiles | Left Exiles lab with Cloak of Protection 4806 | -9/Exiles | Entered Mines 4806 | -8/Mines | Accompanied by 3 allies 4885 | -8/Mines | Discovered exit to Materials (range 7) 4939 | -8/Mines | Discovered exit to Materials (range 15) 5369 | -8/Mines | Entered Materials 5369 | -8/Materials | Accompanied by 2 allies 5369 | -8/Materials | Evolved 2 slots: Power x1, Utility x1 5736 | -8/Materials | Identified exit to Factory 5736 | -8/Materials | Discovered exit to Factory (range 16) 7349 | -8/Materials | Entered Factory 7349 | -7/Factory | Evolved 2 slots: Propulsion x1, Utility x1 7733 | -7/Factory | Repaired Arm. Treads 7796 | -7/Factory | Identified exit to Lower Caves 7796 | -7/Factory | Discovered exit to Lower Caves (range 15) 8192 | -7/Factory | Entered Lower Caves 8618 | -7/Lower Caves | Learned Factory terminal intel 9063 | -7/Lower Caves | Attracted the attention of an 0b10 outpost 9206 | -7/Lower Caves | Found Prototype Device 9289 | -7/Lower Caves | Spotted B-75 Beast 9506 | -7/Lower Caves | Identified exit to Lower Caves 9506 | -7/Lower Caves | Discovered exit to Lower Caves (range 7) 9518 | -7/Lower Caves | Entered another Lower Caves area 9561 | -7/Lower Caves | Build established: Scavenger-Mutant 9695 | -7/Lower Caves | Spotted B-75 Beast 10007 | -7/Lower Caves | Learned Factory security intel 10043 | -7/Lower Caves | Learned Factory trap positions 10155 | -7/Lower Caves | Identified exit to Factory 10155 | -7/Lower Caves | Discovered exit to Factory (range 16) 10256 | -7/Lower Caves | Entered Factory 10256 | -6/Factory | Evolved 2 slots: Utility x2 10257 | -6/Factory | Loaded intel: 104 trap records 10259 | -6/Factory | Loaded intel: 28 terminal locations 10415 | -6/Factory | Repaired Hrd. Light Armor Plating 10445 | -6/Factory | Repaired KE Penetrator 12499 | -6/Factory | Found Hvy. Reactive Plating 13310 | -6/Factory | Identified exit to Factory 13310 | -6/Factory | Discovered exit to Factory (range 16) 13408 | -6/Factory | Identified exit to Garrison 13408 | -6/Factory | Entered Garrison 13434 | -6/Garrison | Triggered checkpoint 13654 | -6/Garrison | Triggered checkpoint 13750 | -6/Garrison | Triggered checkpoint 14075 | -6/Garrison | Identified exit to Factory 14075 | -6/Garrison | Discovered exit to Factory (range 13) 14124 | -6/Garrison | Triggered checkpoint 14128 | -6/Garrison | Build established: Hacker-Mutant 14148 | -6/Garrison | Garrison Relay disabled 14196 | -6/Garrison | Attempted to access garrison exit controls, blocked by remote lockdown 14286 | -6/Garrison | Triggered checkpoint 14415 | -6/Garrison | Installed Relay Interface Framework 14420 | -6/Garrison | Triggered checkpoint 14544 | -6/Garrison | Triggered checkpoint 14705 | -6/Garrison | Spotted B-75 Beast 14776 | -6/Garrison | Destroyed B-75 Beast 15065 | -6/Garrison | Discovered exit to Factory (range 11) 15160 | -6/Garrison | Triggered checkpoint 15204 | -6/Garrison | Entered Factory 15238 | -6/Factory | Repaired Imp. Heat Sink? 15946 | -6/Factory | Identified Heart of Steel 17999 | -6/Factory | Lost 3 parts (1p2n) 18543 | -6/Factory | Identified exit to Garrison 18549 | -6/Factory | Entered Garrison 18732 | -6/Garrison | Triggered checkpoint 18762 | -6/Garrison | Triggered checkpoint 18792 | -6/Garrison | Triggered checkpoint 18833 | -6/Garrison | Destroyed 11 combat bots 18842 | -6/Garrison | Triggered checkpoint 18845 | -6/Garrison | Core integrity fell below 50% 18983 | -6/Garrison | Discovered exit to Factory (range 29) 18983 | -6/Garrison | Discovered exit to Factory (range 52) 18983 | -6/Garrison | Discovered exit to Factory (range 60) 19486 | -6/Garrison | Expanded RIF knowledge: Program Shield 19501 | -6/Garrison | Phase Generator disabled 19572 | -6/Garrison | Entered Factory 19572 | -5/Factory | Evolved 2 slots: Propulsion x1, Utility x1 19702 | -5/Factory | Identified exit to Garrison 19711 | -5/Factory | Entered Garrison 20143 | -5/Garrison | Spotted B-75 Beast 20227 | -5/Garrison | Destroyed B-75 Beast 20270 | -5/Garrison | Triggered checkpoint 20290 | -5/Garrison | Triggered checkpoint 20421 | -5/Garrison | Garrison Relay disabled 20426 | -5/Garrison | Triggered checkpoint 20744 | -5/Garrison | Triggered checkpoint 20941 | -5/Garrison | Build established: Scavenger-Mutant 20956 | -5/Garrison | Triggered checkpoint 20984 | -5/Garrison | Identified exit to Factory 20984 | -5/Garrison | Discovered exit to Factory (range 15) 21141 | -5/Garrison | Discovered exit to Factory (range 8) 21160 | -5/Garrison | Spotted Executioner 21193 | -5/Garrison | Destroyed Executioner 21250 | -5/Garrison | Triggered checkpoint 21506 | -5/Garrison | Core integrity fell below 50% 21522 | -5/Garrison | Crushed by falling debris 21587 | -5/Garrison | Lost 15 parts (3p6n5u1w) 22088 | -5/Garrison | Entered Factory 22176 | -5/Factory | Spotted B-75 Beast 22239 | -5/Factory | Garrison activated, responded to threat 22388 | -5/Factory | First assault squad dispatched 22454 | -5/Factory | Identified exit to Garrison 22454 | -5/Factory | Entered Garrison 22502 | -5/Garrison | Spotted B-75 Beast 22504 | -5/Garrison | Triggered checkpoint 22511 | -5/Garrison | Build established: Hacker-Mutant 22512 | -5/Garrison | Triggered checkpoint 22574 | -5/Garrison | Destroyed B-75 Beast 22577 | -5/Garrison | Lost 4 parts (4u) 22595 | -5/Garrison | Destroyed 8 combat bots 22675 | -5/Garrison | Core integrity fell below 20% 22718 | -5/Garrison | Triggered checkpoint 22820 | -5/Garrison | Triggered checkpoint 22936 | -5/Garrison | Identified exit to Factory 22936 | -5/Garrison | Discovered exit to Factory (range 9) 22998 | -5/Garrison | Triggered checkpoint 23006 | -5/Garrison | Crushed by falling debris 23037 | -5/Garrison | Lost 3 parts (1p2u) 23074 | -5/Garrison | Triggered checkpoint 23136 | -5/Garrison | Discovered exit to Factory (range 13) 23157 | -5/Garrison | Discovered exit to Factory (range 5) 23191 | -5/Garrison | Spotted B-75 Beast 23220 | -5/Garrison | Destroyed B-75 Beast 23593 | -5/Garrison | Expanded RIF knowledge: Robot Detection 23729 | -5/Garrison | Expanded RIF knowledge: Command Fork 23836 | -5/Garrison | Entered Factory 23906 | -5/Factory | Build established: Scavenger-Mutant 24694 | -5/Factory | Repaired Enh. Nova Cannon 24708 | -5/Factory | Identified exit to Upper Caves 24708 | -5/Factory | Discovered exit to Upper Caves (range 5) 24725 | -5/Factory | Entered Upper Caves 24726 | -5/Upper Caves | Encountered a Warlord checkpoint 24735 | -5/Upper Caves | Build established: Hacker-Mutant 24773 | -5/Upper Caves | 1C-UTU showed up to help 24775 | -5/Upper Caves | 1C-UTU revealed a hidden path 24791 | -5/Upper Caves | Entered Factory 24791 | -4/Factory | Evolved 2 slots: Utility x1, Weapon x1 25094 | -4/Factory | Identified exit to Upper Caves 25121 | -4/Factory | Found Launcher Loader 25175 | -4/Factory | Entered Upper Caves 25366 | -4/Upper Caves | Spotted B-86 Titan 25389 | -4/Upper Caves | Destroyed B-86 Titan 25653 | -4/Upper Caves | Found Alien Artifact 25655 | -4/Upper Caves | Identified Dimensional Node Initializer 25655 | -4/Upper Caves | Initialized slip node 25767 | -4/Upper Caves | Attracted the attention of an 0b10 checkpoint 25767 | -4/Upper Caves | Identified exit to Upper Caves 25767 | -4/Upper Caves | Discovered exit to Upper Caves (range 6) 25830 | -4/Upper Caves | Entered another Upper Caves area 25831 | -4/Upper Caves | Encountered a Warlord checkpoint 26041 | -4/Upper Caves | Identified exit to Research 26041 | -4/Upper Caves | Discovered exit to Research (range 4) 26147 | -4/Upper Caves | Attracted the attention of an 0b10 outpost 26218 | -4/Upper Caves | Destroyed 10 combat bots 26450 | -4/Upper Caves | Identified exit to Zhirov 26450 | -4/Upper Caves | Discovered exit to Zhirov (range 15) 26513 | -4/Upper Caves | Attracted the attention of an 0b10 checkpoint 27800 | -4/Upper Caves | Entered Zhirov 27800 | -4/Zhirov | Identified exit to Proximity Caves 27800 | -4/Zhirov | Discovered exit to Proximity Caves (range 3) 27829 | -4/Zhirov | Met Zhirov 27869 | -4/Zhirov | Found Alien Artifact 27870 | -4/Zhirov | Identified Integrated Dissipator 27870 | -4/Zhirov | Installed Integrated Dissipator, increased core heat dissipation (+20) 27944 | -4/Zhirov | Found Alien Artifact 28008 | -4/Zhirov | Zhirov requested help retrieving the SGEMP Prototype 28053 | -4/Zhirov | Entered Proximity Caves 28171 | -3/Proximity Caves | Build established: Hacker-Gunner 28509 | -3/Proximity Caves | Spotted B-86 Titan 28548 | -3/Proximity Caves | Destroyed B-86 Titan 29817 | -3/Proximity Caves | Discovered exit to Research (range 18) 30060 | -3/Proximity Caves | Entered Research 30060 | -3/Research | Evolved 2 slots: Propulsion x1, Utility x1 30141 | -3/Research | Found Fusion Bomb Launcher 30494 | -3/Research | Identified exit to Garrison 30494 | -3/Research | Entered Garrison 30494 | -3/Garrison | Spotted B-90 Cyclops 30518 | -3/Garrison | Rescued a captive Derelict 30524 | -3/Garrison | Triggered checkpoint 30575 | -3/Garrison | Expanded RIF knowledge: Signal Jamming 30666 | -3/Garrison | Build established: Scavenger-Skirmisher 30768 | -3/Garrison | Triggered checkpoint 30768 | -3/Garrison | Spotted B-86 Titan 30776 | -3/Garrison | Triggered checkpoint 30780 | -3/Garrison | Destroyed B-86 Titan 30780 | -3/Garrison | Triggered checkpoint 30796 | -3/Garrison | Triggered checkpoint 30886 | -3/Garrison | Destroyed 11 combat bots 30923 | -3/Garrison | Identified exit to Research 30923 | -3/Garrison | Discovered exit to Research (range 16) 31100 | -3/Garrison | Spotted B-86 Titan 31108 | -3/Garrison | Destroyed B-86 Titan 31180 | -3/Garrison | Triggered checkpoint 31615 | -3/Garrison | Discovered exit to Research (range 12) 31623 | -3/Garrison | Discovered exit to Research (range 62) 31623 | -3/Garrison | Discovered exit to Research (range 41) 31623 | -3/Garrison | Discovered exit to Research (range 16) 31660 | -3/Garrison | Entered Research 31660 | -2/Research | Evolved 2 slots: Power x1, Utility x1 31665 | -2/Research | Spotted B-90 Cyclops 31701 | -2/Research | Build established: Hacker-Skirmisher 31791 | -2/Research | Assembled infested ambush trap array 31848 | -2/Research | Destroyed 11 combat bots 31910 | -2/Research | First assault squad dispatched 31936 | -2/Research | Destroyed B-90 Cyclops 32601 | -2/Research | Build established: Scavenger-Tank 33477 | -2/Research | Crushed by falling debris 34015 | -2/Research | Crushed by falling debris 34096 | -2/Research | Identified exit to Quarantine 34096 | -2/Research | Discovered exit to Quarantine (range 8) 34105 | -2/Research | Entered Quarantine 34106 | -2/Quarantine | Maximum security lockdown engaged 34245 | -2/Quarantine | Crushed by falling debris 34246 | -2/Quarantine | Identified Transdimensional Reconstructor 34246 | -2/Quarantine | Warped through subspace 34281 | -2/Quarantine | Found Alien Artifact 34282 | -2/Quarantine | Identified Core Reset Matrix 34282 | -2/Quarantine | Used Core Reset Matrix 34286 | -2/Quarantine | Detected hypermatrix surge 34286 | -2/Quarantine | Sensed 12 artifacts in vicinity 34349 | -2/Quarantine | Spotted Investigator 34350 | -2/Quarantine | Scanned by Researcher 34350 | -2/Quarantine | Destroyed Investigator 34355 | -2/Quarantine | Spotted Executioner 34367 | -2/Quarantine | Destroyed Executioner 34415 | -2/Quarantine | Destroyed 25 combat bots 34478 | -2/Quarantine | Spotted Striker 34487 | -2/Quarantine | Destroyed Striker 34495 | -2/Quarantine | Spotted Striker 34496 | -2/Quarantine | Spotted Executioner 34525 | -2/Quarantine | Destroyed Striker 34539 | -2/Quarantine | System corruption reached 10% 34547 | -2/Quarantine | Core integrity fell below 50% 34561 | -2/Quarantine | Core integrity fell below 20% 34570 | -2/Quarantine | Destroyed 24 combat bots 34571 | -2/Quarantine | Destroyed by P-80 Master with Gamma Rifle Last Messages --------------- 34561_ M-36 Artificer repairs H-88 Terminator. 34562_ Critical hit (Burn: +37). 34563_ The unstable cave ceiling collapses. 34563_ Unknown Energy Gun crushed. 34563_ Acquired 90 matter. 34563_ Penetrated by Slug. 34564_ Slug penetrates Earth. 34565_ The unstable cave ceiling collapses. 34566_ P-80 Master resets H-88 Terminator, system corruption cleaned. 34566_ Penetrated by Slug. 34566_ Slug penetrates Earth. 34567_ X6U,UN2S/N77&9